bitfinex/quotes_ETHUSD_20251213
["timestamp","ask_amount","ask_price","bid_price","bid_amount"]
[1765638497657,16.003102,3122.6,3121.9,0.002]
[1765638497796,0.4756,3122.0,3121.9,0.002]
[1765638498003,0.9856,3122.0,3121.9,0.002]
[1765638498342,1.75147153,3122.0,3121.9,0.002]
[1765638499229,1.92661868,3122.0,3121.9,0.002]
[1765638499427,5.12969363,3122.0,3121.9,0.002]
[1765638501111,30.33309363,3122.0,3121.9,0.002]
[1765638501331,17.01321363,3122.0,3121.9,0.002]
[1765638501520,14.30392163,3122.0,3121.9,0.002]
[1765638501831,8.93742563,3122.0,3121.9,0.002]
[1765638502028,8.25312563,3122.0,3121.9,0.002]
[1765638502336,5.12969363,3122.0,3121.9,0.002]
[1765638502530,4.69061868,3122.0,3121.9,0.002]
[1765638502698,1.92661868,3122.0,3121.9,0.002]
[1765638503243,5.12969363,3122.0,3121.9,0.002]
[1765638504827,25.29962663,3122.0,3121.9,0.002]
[1765638505317,34.48158992,3122.0,3121.9,0.002]
[1765638505924,6.06992,3121.5,3120.3,0.58247529]
[1765638506130,1.41566353,3121.4,3120.3,0.58247529]
[1765638506325,0.29867153,3121.3,3120.3,0.58247529]
[1765638506535,0.29867153,3121.2,3120.3,0.58247529]
[1765638506737,0.29867153,3121.1,3120.3,0.58247529]
[1765638506939,0.80867153,3121.0,3120.3,0.58247529]
[1765638507145,0.29867153,3120.9,3120.3,0.002]
[1765638507350,0.6678,3120.9,3120.3,0.002]
[1765638507569,0.29867153,3120.8,3120.3,0.002]
[1765638507938,0.4699,3120.7,3120.3,0.002]
[1765638508139,0.51,3120.6,3120.3,0.002]
[1765638508339,0.4708,3120.4,3120.3,0.002]
[1765638511044,0.29774071,3120.5,3120.3,0.002]
[1765638511355,0.29774071,3120.5,3120.4,0.4587]
[1765638511536,0.80774071,3120.8,3120.4,0.4587]
[1765638511736,0.29774071,3120.7,3120.4,0.4587]
[1765638512029,0.51,3120.8,3120.4,3.66341222]
[1765638512423,0.51,3120.8,3120.4,0.4587]
[1765638512620,0.51,3120.8,3120.4,3.66337953]
[1765638513054,0.29774071,3120.9,3120.7,0.4587]
[1765638513253,0.51,3121.0,3120.8,0.4587]
[1765638513827,0.80774071,3121.0,3120.8,0.4587]
[1765638514033,0.29774071,3120.9,3120.8,0.4587]
[1765638514370,0.51,3121.0,3120.8,0.4587]
[1765638514525,0.51,3121.0,3120.8,3.66299052]
[1765638514727,0.80774071,3121.0,3120.8,0.4587]
[1765638514962,0.29774071,3120.9,3120.8,0.4587]
[1765638515252,0.51,3121.0,3120.9,0.4587]
[1765638515749,0.80764707,3121.0,3120.9,0.4587]
[1765638515950,0.29764707,3121.5,3120.9,6.86710782]
[1765638516168,0.80764707,3121.4,3120.9,4.15920391]
[1765638516375,0.29764707,3121.3,3120.9,4.15920391]
[1765638516531,0.29764707,3121.2,3120.9,4.15920391]
[1765638516855,0.29764707,3121.1,3121.0,0.4963]
[1765638517056,0.29764707,3121.3,3121.0,0.6564]
[1765638517255,0.29764707,3121.2,3121.0,0.6564]
[1765638517445,0.29764707,3121.1,3121.0,0.6564]
[1765638517646,0.29764707,3121.3,3121.0,0.6564]
[1765638517847,0.29764707,3121.2,3121.0,0.6564]
[1765638518052,0.51,3121.4,3121.0,3.86050124]
[1765638518053,0.29764707,3121.1,3121.0,3.86050124]
[1765638518253,0.51,3121.4,3121.1,0.4587]
[1765638518555,0.29807627,3121.3,3121.1,0.4587]
[1765638518754,0.29807627,3121.2,3121.1,0.4587]
[1765638519146,0.29807627,3121.2,3121.0,3.36420124]
[1765638519353,0.51,3121.4,3121.1,0.955]
[1765638519530,0.51,3121.4,3121.3,0.4587]
[1765638519855,0.80821773,3121.4,3121.3,0.4587]
[1765638520028,0.29821773,3121.4,3121.3,0.4587]
[1765638520425,0.29821773,3121.4,3121.3,3.66249329]
[1765638522226,0.29821773,3121.4,3121.3,0.4587]
[1765638522848,0.29821773,3121.4,3121.2,3.20389379]
[1765638523048,4.18326914,3121.8,3121.2,3.20389379]
[1765638523049,0.29821773,3121.3,3121.2,3.20389379]
[1765638523632,0.29821773,3121.3,3121.2,3.66259379]
[1765638523958,0.29821773,3121.3,3121.2,4.15889379]
[1765638524655,0.29821773,3121.3,3121.2,3.66259379]
[1765638526146,0.29821773,3121.3,3121.2,4.15889379]
[1765638526676,0.29821773,3121.3,3121.2,3.66259379]
[1765638526850,0.76901773,3121.3,3121.1,3.20395862]
[1765638527174,0.29821773,3121.2,3121.1,3.20395862]
[1765638527339,0.48681773,3121.2,3121.0,3.20406926]
[1765638527538,0.1886,3121.2,3121.0,3.20406926]
[1765638527840,3.20320743,3121.9,3121.1,3.82272904]
[1765638528043,1.14605333,3121.8,3121.4,0.4587]
[1765638528281,0.29921787,3121.7,3121.4,0.4587]
[1765638528581,0.29921787,3121.6,3121.4,0.4587]
[1765638528889,0.29921787,3121.5,3121.4,0.4587]
[1765638529846,0.29921787,3121.5,3121.4,3.66239065]
[1765638530035,0.29921787,3121.5,3121.4,4.15869065]
[1765638530554,0.509,3121.9,3121.4,8.09863026]
[1765638530883,0.29924395,3121.8,3121.4,7.60233026]
[1765638531041,0.29924395,3121.7,3121.4,3.66239065]
[1765638531383,3.40068723,3122.3,3121.5,0.4963]
[1765638531384,0.29924395,3121.6,3121.5,0.4963]
[1765638531741,0.29924395,3121.6,3121.5,0.4587]
[1765638531936,0.77004395,3121.6,3121.4,3.20369065]
[1765638532141,0.4708,3121.6,3121.4,3.20369065]
[1765638532343,0.4708,3121.6,3121.2,3.20383735]
[1765638532641,0.4708,3121.6,3121.2,6.40773328]
[1765638532966,0.4699,3121.8,3121.5,0.4587]
[1765638533173,0.29913624,3121.7,3121.5,0.4587]
[1765638533465,0.29913624,3121.6,3121.5,0.4587]
[1765638534370,0.76993624,3121.6,3121.2,6.40773328]
[1765638534545,0.4708,3121.6,3121.2,3.20383735]
[1765638534753,0.9407,3121.6,3121.2,3.20383735]
[1765638535090,0.1886,3121.3,3121.1,3.20395765]
[1765638535252,0.468,3121.2,3120.6,1.07657529]
[1765638535452,0.468,3121.2,3120.6,0.4961]
[1765638535852,0.29907924,3121.3,3121.1,3.20399859]
[1765638536153,0.509,3121.4,3121.1,0.4801]
[1765638536471,0.4798,3121.2,3121.0,3.20408877]
[1765638536676,0.1579,3121.1,3120.8,3.20424052]
[1765638537041,0.1579,3121.1,3120.9,3.20417245]
[1765638537241,0.2991179,3121.3,3120.7,0.4961]
[1765638537442,0.2991179,3121.2,3121.0,3.20410112]
[1765638537737,0.7910318,3121.3,3120.9,3.20411908]
[1765638537941,0.509,3121.2,3121.1,3.20399859]
[1765638538283,0.29912757,3121.7,3121.1,3.20399859]
[1765638538440,0.509,3121.3,3121.1,3.84419859]
[1765638538856,3.69520673,3121.8,3121.2,0.4801]
[1765638539058,0.80817274,3121.7,3121.2,0.4801]
[1765638539261,0.74951069,3121.6,3121.2,0.4801]
[1765638539465,0.29917274,3121.5,3121.2,0.4801]
[1765638539663,0.29917274,3121.4,3121.2,0.4801]
[1765638539843,0.29917274,3121.3,3121.2,0.4801]
[1765638540038,0.29917274,3121.3,3121.0,3.20408565]
[1765638540246,0.29932643,3121.2,3121.0,3.20408565]
[1765638540444,3.65387522,3121.6,3120.7,0.58047529]
[1765638540646,1.20751491,3121.5,3120.7,1.07657529]
[1765638540840,0.29932739,3121.4,3120.7,1.07657529]
[1765638541042,0.29932739,3121.3,3120.7,1.07657529]
[1765638541245,0.29932739,3121.2,3120.8,0.4961]
[1765638541454,0.4919,3121.8,3121.4,0.4801]
[1765638541654,1.66988163,3121.7,3120.7,0.58047529]
[1765638541887,0.29947333,3121.6,3120.7,0.58047529]
[1765638542061,0.29947333,3121.5,3120.7,0.58047529]
[1765638542267,0.29947333,3121.4,3120.7,0.58047529]
[1765638542468,0.29947333,3121.3,3120.7,0.58047529]
[1765638542691,0.29947333,3121.2,3120.8,3.20430658]
[1765638542893,0.29947333,3121.1,3120.7,3.20436964]
[1765638543185,0.29947333,3121.0,3120.7,3.20436964]
[1765638543478,0.45739652,3121.5,3120.7,6.4087789]
[1765638543683,0.79161096,3121.4,3120.7,6.4087789]
[1765638543884,0.29971096,3121.3,3120.7,6.4087789]
[1765638544080,0.29971096,3121.2,3120.7,6.4087789]
[1765638544258,0.29971096,3121.1,3120.7,6.4087789]
[1765638544461,0.29971096,3121.0,3120.7,0.58047529]
[1765638544668,0.4919,3121.4,3120.7,0.58047529]
[1765638544868,0.66933617,3121.3,3120.9,0.4801]
[1765638545068,0.29978713,3121.2,3120.9,0.4801]
[1765638545265,0.29978713,3121.1,3120.9,0.4801]
[1765638545482,0.29978713,3121.0,3120.9,0.4801]
[1765638546775,0.77958713,3121.0,3120.7,3.20433239]
[1765638546981,0.29978713,3120.9,3120.5,0.58047529]
[1765638547179,0.1885,3121.2,3120.5,0.58047529]
[1765638547384,0.29992961,3121.1,3120.6,0.4961]
[1765638547692,0.29992961,3121.0,3120.6,0.4961]
[1765638547992,0.29992961,3120.9,3120.6,0.4961]
[1765638548196,0.509,3121.3,3121.2,0.4801]
[1765638548372,0.80894659,3121.3,3121.2,3.68399593]
[1765638549495,1.27164659,3121.3,3120.9,3.20417573]
[1765638549666,0.1672,3121.1,3120.9,3.20417573]
[1765638549867,0.29994659,3121.0,3120.9,3.20417573]
[1765638550488,0.29994659,3121.0,3120.6,6.4090239]
[1765638550793,0.29994659,3120.9,3120.6,3.20451195]
[1765638550976,0.29994659,3120.8,3120.6,3.20451195]
[1765638551177,3.6957546,3121.3,3120.6,3.20451195]
[1765638551494,1.16140666,3121.2,3120.6,3.20451195]
[1765638551794,0.2999312,3121.1,3120.6,3.20451195]
[1765638551993,0.2999312,3121.0,3120.6,3.20451195]
[1765638552297,0.2999312,3120.9,3120.6,3.20451195]
[1765638552486,0.2999312,3120.8,3120.4,6.40943468]
[1765638552686,0.2999312,3120.7,3120.4,6.40943468]
[1765638552900,0.4919,3121.1,3120.4,6.40943468]
[1765638553090,0.29991006,3121.0,3120.4,10.80229549]
[1765638553396,0.29991006,3120.9,3120.5,0.4961]
[1765638553597,0.29991006,3120.8,3120.5,0.4961]
[1765638553787,1.0009,3121.5,3120.5,0.4961]
[1765638553984,0.29986643,3121.4,3120.7,0.4801]
[1765638554191,0.29986643,3121.3,3120.7,0.9891]
[1765638554390,0.29986643,3121.2,3120.8,0.4961]
[1765638554573,0.29986643,3121.1,3120.9,6.40840782]
[1765638554774,0.509,3121.5,3120.9,3.20420391]
[1765638555093,0.29982928,3121.4,3120.9,6.90450782]
[1765638555406,0.29982928,3121.3,3120.9,6.90450782]
[1765638555612,0.29982928,3121.2,3120.9,6.90450782]
[1765638555782,0.29982928,3121.1,3120.9,6.90450782]
[1765638556106,0.509,3121.5,3120.9,6.90450782]
[1765638556303,0.509,3121.5,3120.9,3.70030391]
[1765638556304,0.29984602,3121.4,3120.9,3.70030391]
[1765638556506,0.29984602,3121.3,3120.9,6.90450782]
[1765638556702,0.29984602,3121.2,3120.9,6.90450782]
[1765638556999,0.29984602,3121.1,3120.9,6.90450782]
[1765638557205,0.29984602,3121.0,3120.9,3.70030391]
[1765638557700,0.509,3121.5,3120.9,7.38460782]
[1765638557901,0.29984272,3121.4,3120.9,7.38460782]
[1765638558083,0.29984272,3121.3,3120.9,7.38460782]
[1765638558273,0.29984272,3121.2,3120.9,7.38460782]
[1765638558473,0.29984272,3121.1,3120.9,7.38460782]
[1765638558674,0.509,3121.5,3120.9,7.38460782]
[1765638558901,0.29984574,3121.4,3120.9,7.38460782]
[1765638559073,0.29984574,3121.3,3120.9,7.38460782]
[1765638559273,0.509,3121.5,3121.2,0.4801]
[1765638559585,0.29984914,3121.4,3121.2,0.4801]
[1765638559805,0.29984914,3121.3,3121.1,0.1601]
[1765638559998,0.29984914,3121.2,3121.1,0.1601]
[1765638560381,0.29984914,3121.2,3121.1,0.6402]
[1765638560981,0.29984914,3121.2,3121.1,3.84419859]
[1765638561207,0.29984914,3121.2,3121.1,4.32489859]
[1765638564784,0.29984914,3121.2,3121.1,3.84419859]
[1765638565616,0.29984914,3121.2,3121.1,4.32719859]
[1765638566674,0.509,3121.9,3121.1,9.11373807]
[1765638566873,0.30013003,3121.8,3121.1,7.55719718]
[1765638567112,0.30013003,3121.7,3121.1,8.04019718]
[1765638567291,0.30013003,3121.6,3121.1,8.04019718]
[1765638567492,0.30013003,3121.5,3121.1,8.04019718]
[1765638567693,0.30013003,3121.4,3121.1,8.04019718]
[1765638568006,0.30013003,3121.3,3121.1,8.68452738]
[1765638568211,0.4884,3121.8,3121.2,0.483]
[1765638568410,0.30001887,3121.7,3121.2,0.977]
[1765638568617,0.30001887,3121.6,3121.2,0.977]
[1765638568802,0.30001887,3121.5,3121.2,0.977]
[1765638568989,0.30001887,3121.4,3121.3,3.20379329]
[1765638569412,0.30001887,3121.4,3121.3,3.69779329]
[1765638576017,0.30001887,3121.4,3121.3,8.36981303]
[1765638576318,0.30001887,3121.4,3121.3,3.69779329]
[1765638576497,0.30001887,3121.4,3121.3,8.36981303]
[1765638579518,1.27761887,3121.4,3121.2,3.20389374]
[1765638579812,0.30001887,3121.3,3121.2,3.20389374]
[1765638579987,0.78921887,3121.3,3121.2,3.20389374]
[1765638581414,0.78921887,3121.3,3121.0,6.40810847]
[1765638581592,0.4892,3121.3,3121.0,6.40810847]
[1765638583109,0.30000979,3121.2,3121.0,6.40810847]
[1765638583316,0.4892,3121.3,3121.0,6.40810847]
[1765638583488,0.30001795,3121.2,3121.0,6.40810847]
[1765638583687,0.4892,3121.3,3121.0,6.40810847]
[1765638583890,0.30001794,3121.2,3121.0,6.40810847]
[1765638584101,0.509,3121.9,3121.2,0.494]
[1765638584304,0.4884,3121.7,3121.2,0.494]
[1765638584507,0.30007286,3121.6,3121.2,0.494]
[1765638584702,0.30007286,3121.5,3121.2,0.494]
[1765638585018,0.4884,3121.7,3121.0,6.89110847]
[1765638585019,0.4892,3121.3,3121.0,6.40810847]
[1765638585321,0.30007286,3121.2,3121.0,6.40810847]
[1765638585508,0.9776,3121.3,3121.0,6.40810847]
[1765638585710,0.30008934,3121.2,3121.0,6.40810847]
[1765638585906,0.9776,3121.3,3121.0,6.40810847]
[1765638586100,0.30008934,3121.2,3121.0,6.40810847]
[1765638586299,0.9776,3121.3,3121.0,6.40810847]
[1765638586506,0.4892,3121.1,3121.0,3.78448252]
[1765638586824,0.4884,3121.7,3121.0,3.78448252]
[1765638586994,0.70639811,3121.6,3121.0,4.27848252]
[1765638587195,0.4892,3121.1,3121.0,3.20400723]
[1765638587407,0.78930808,3121.1,3121.0,3.20400723]
[1765638587719,1.27770808,3121.1,3120.8,0.58047529]
[1765638588020,0.30010808,3121.0,3120.8,0.58047529]
[1765638588222,0.4892,3121.1,3120.8,0.58047529]
[1765638588430,0.30016236,3121.0,3120.8,0.58047529]
[1765638588617,0.4892,3121.1,3120.8,0.58047529]
[1765638588794,0.30016237,3121.0,3120.8,5.73549503]
[1765638588992,0.4892,3120.9,3120.8,0.58047529]
[1765638589228,0.95066237,3120.9,3120.4,0.4892]
[1765638589432,0.4892,3120.5,3120.3,0.002]
[1765638589630,0.1912,3120.4,3120.3,3.20682004]
[1765638589928,0.4884,3120.7,3120.3,3.78729533]
[1765638590233,0.4892,3120.4,3120.3,0.002]
[1765638590406,0.78924031,3120.4,3120.3,3.20682004]
[1765638591130,1.27764031,3120.4,3120.3,0.002]
[1765638591826,5.07788479,3120.4,3120.3,0.002]
[1765638592025,9.75551587,3120.4,3120.3,0.002]
[1765638592226,38.52693687,3120.4,3120.3,0.002]
[1765638592424,39.10741216,3120.4,3120.3,0.002]
[1765638592625,0.3745,3119.7,3119.5,0.002]
[1765638592803,1.28994031,3119.6,3119.5,0.002]
[1765638593003,2.39372745,3119.6,3119.5,0.002]
[1765638593731,5.59926662,3119.6,3119.5,0.002]
[1765638593930,2.39372745,3119.6,3119.5,0.002]
[1765638594133,1.77834031,3119.6,3119.5,0.002]
[1765638595630,1.27034031,3119.6,3119.5,0.002]
[1765638595831,1.77834031,3119.6,3119.5,0.002]
[1765638597928,1.4783,3119.6,3119.5,0.002]
[1765638598639,0.508,3119.6,3119.5,0.002]
[1765638598809,0.508,3119.6,3119.5,0.483]
[1765638599313,0.9816,3119.6,3119.5,0.002]
[1765638601527,1.4608,3119.6,3119.5,0.002]
[1765638602231,1.92741389,3119.6,3119.5,0.002]
[1765638602436,1.4608,3119.6,3119.5,0.002]
[1765638602854,0.508,3119.6,3119.5,0.002]
[1765638603001,0.9816,3119.6,3119.5,0.002]
[1765638603965,0.196,3119.9,3119.5,0.483]
[1765638604254,0.704,3119.9,3119.6,3.20553917]
[1765638604816,0.508,3119.9,3119.6,3.20553917]
[1765638605052,0.196,3120.2,3119.8,0.481]
[1765638605264,0.704,3120.2,3119.8,0.481]
[1765638606346,0.508,3120.2,3119.9,3.20523093]
[1765638606554,0.508,3120.2,3120.1,0.481]
[1765638607259,0.508,3120.2,3119.9,3.20523093]
[1765638607414,0.508,3120.2,3119.9,6.41046186]
[1765638607616,3.20442371,3120.7,3120.1,5.31833108]
[1765638607617,0.4792,3120.7,3120.1,5.31833108]
[1765638607826,0.29788204,3120.8,3120.3,5.15863108]
[1765638608248,0.29788204,3120.8,3120.5,3.20461464]
[1765638608749,0.29788204,3120.8,3120.4,3.20469193]
[1765638608953,0.77708204,3120.8,3120.4,3.20469193]
[1765638609155,1.24213085,3120.8,3120.4,3.20469193]
[1765638609317,0.4736,3120.5,3120.2,3.20488435]
[1765638609518,0.199,3120.4,3120.3,3.20480776]
[1765638609821,0.4792,3120.7,3120.3,3.68580776]
[1765638610856,0.4792,3120.7,3120.3,0.481]
[1765638611054,0.94427325,3120.7,3120.2,3.20489737]
[1765638611223,0.29802798,3120.6,3120.3,3.20477838]
[1765638612064,0.77722798,3120.6,3120.3,3.20477838]
[1765638612521,0.4792,3120.6,3120.2,6.40983549]
[1765638612924,0.4792,3120.6,3120.2,3.20491273]
[1765638613345,0.4792,3120.6,3120.2,6.40983549]
[1765638613513,0.77749382,3120.6,3120.2,3.20491273]
[1765638613714,0.29829382,3120.5,3120.2,3.20491273]
[1765638614456,0.4792,3120.6,3120.2,3.20491273]
[1765638614943,0.77749382,3120.6,3120.2,3.20491273]
[1765638615144,0.29829382,3120.5,3120.2,6.40983549]
[1765638615447,0.4792,3121.2,3120.5,0.481]
[1765638615617,0.2986202,3121.1,3120.8,0.481]
[1765638615823,0.2986202,3121.0,3120.8,0.481]
[1765638616149,0.2986202,3120.9,3120.8,0.481]
[1765638616351,0.2986202,3121.1,3120.8,0.4959]
[1765638616565,0.2986202,3121.0,3120.9,3.20420391]
[1765638616939,0.2986202,3121.0,3120.9,4.18110391]
[1765638617150,0.2986202,3121.0,3120.9,3.68520391]
[1765638620758,0.2986202,3121.0,3120.9,8.36283499]
[1765638620957,0.2986202,3121.0,3120.9,8.85873499]
[1765638623265,0.508,3121.4,3120.9,8.85873499]
[1765638623266,0.2986202,3121.3,3120.9,11.5670389]
[1765638623469,0.2986202,3121.2,3120.9,12.0279389]
[1765638623655,0.2986202,3121.1,3120.9,12.0279389]
[1765638623967,0.508,3121.4,3120.9,7.35030782]
[1765638624272,0.29879621,3121.3,3121.0,0.4949]
[1765638624441,0.9976,3121.4,3121.0,0.4949]
[1765638624442,0.29879621,3121.2,3121.0,0.4949]
[1765638624642,0.9976,3121.4,3121.0,0.4949]
[1765638624843,0.29875586,3121.3,3121.0,0.4949]
[1765638625199,0.508,3121.4,3121.1,0.1601]
[1765638625339,0.29872361,3121.3,3121.2,7.88152701]
[1765638625840,0.001,3121.7,3121.2,7.32899186]
[1765638625841,0.29872361,3121.6,3121.2,7.32899186]
[1765638626044,0.29872361,3121.5,3121.2,7.32899186]
[1765638626242,0.29872361,3121.4,3121.2,7.32899186]
[1765638626439,0.29872361,3121.3,3121.2,3.65609593]
[1765638626683,0.29872361,3121.3,3121.1,0.1601]
[1765638626684,0.4786,3121.3,3121.1,3.20395802]
[1765638626989,0.1488,3121.2,3121.1,3.20395802]
[1765638627544,0.1488,3121.2,3120.9,3.20419986]
[1765638627545,0.1488,3121.2,3120.9,6.40840377]
[1765638627952,0.4753,3121.0,3120.9,3.20419986]
[1765638628764,0.4901,3121.2,3120.9,3.20419986]
[1765638629172,0.29886081,3121.1,3120.9,3.20419986]
[1765638629370,0.4901,3121.2,3120.9,3.20419986]
[1765638629575,0.4786,3121.0,3120.8,6.40858564]
[1765638630285,0.4901,3121.4,3120.9,0.4522]
[1765638630447,0.29885366,3121.3,3120.9,0.4522]
[1765638630647,0.29885366,3121.2,3120.9,0.4522]
[1765638630848,0.29885366,3121.1,3120.9,0.4522]
[1765638631064,0.4901,3121.4,3120.9,0.4522]
[1765638631265,0.29893553,3121.3,3121.0,3.20410124]
[1765638631449,0.4901,3121.4,3121.0,3.20410124]
[1765638631450,0.29893553,3121.2,3121.0,3.20410124]
[1765638631645,0.29893553,3121.1,3121.0,3.20410124]
[1765638633280,0.29893553,3121.1,3121.0,0.4522]
[1765638635293,0.29893553,3121.1,3121.0,3.65630124]
[1765638635894,0.77753553,3121.1,3121.0,3.20410124]
[1765638636086,0.29893553,3121.1,3121.0,3.65630124]
[1765638637379,0.29893553,3121.1,3121.0,4.12530124]
[1765638637900,0.29893553,3121.1,3121.0,3.65630124]
[1765638638473,0.77753553,3121.1,3121.0,3.20410124]
[1765638638804,1.26763553,3121.1,3121.0,3.20410124]
[1765638638970,1.26763553,3121.1,3120.7,3.20440059]
[1765638639173,0.1488,3120.9,3120.7,3.20440059]
[1765638639372,0.77423553,3120.8,3120.7,3.20440059]
[1765638639575,0.77423553,3120.8,3120.4,3.20468373]
[1765638639778,0.6804,3120.9,3120.4,3.78515902]
[1765638639779,0.4786,3120.5,3120.4,3.78515902]
[1765638640099,0.4835,3120.7,3120.4,6.98987636]
[1765638640398,0.29972053,3120.6,3120.4,6.98987636]
[1765638640604,0.4835,3120.7,3120.4,6.98987636]
[1765638640770,0.29972035,3120.6,3120.4,6.98987636]
[1765638641098,0.29973166,3120.5,3120.4,3.78515902]
[1765638641603,0.29973166,3120.5,3120.4,4.23735902]
[1765638642604,0.1903,3120.9,3120.4,3.65688373]
[1765638642801,0.4786,3120.5,3120.4,3.20468373]
[1765638643006,0.77844252,3120.5,3120.4,3.20468373]
[1765638643805,0.77844252,3120.5,3120.3,0.58047529]
[1765638644003,0.45434252,3120.4,3120.3,0.58047529]
[1765638644204,0.45434252,3120.4,3120.2,3.20492276]
[1765638644379,0.29984252,3120.3,3120.2,3.20492276]
[1765638645198,0.77844252,3120.3,3120.2,3.20492276]
[1765638645599,0.29984252,3120.3,3120.2,3.20492276]
[1765638646306,0.29984252,3120.3,3120.2,3.65712276]
[1765638647407,0.29984252,3120.3,3120.2,3.20492276]
[1765638647611,0.29984252,3120.3,3120.2,3.65712276]
[1765638649211,0.77844252,3120.3,3120.2,3.20492276]
[1765638649412,0.77844252,3120.3,3120.1,3.20501461]
[1765638649611,0.45434252,3120.2,3120.1,3.20501461]
[1765638649810,0.29984252,3120.2,3120.1,3.20501461]
[1765638650106,0.29984252,3120.2,3120.1,3.65721461]
[1765638652338,0.29984252,3120.2,3120.1,4.85935898]
[1765638652493,0.6804,3120.9,3120.1,8.06438445]
[1765638652692,0.29988345,3120.8,3120.6,0.4522]
[1765638653018,0.29987981,3120.7,3120.6,0.4522]
[1765638653223,0.29987981,3120.7,3120.6,3.65671195]
[1765638654130,0.29987981,3120.7,3120.6,4.12571195]
[1765638656425,0.29987981,3120.7,3120.6,4.63371195]
[1765638657830,0.29987981,3120.7,3120.6,10.41136696]
[1765638660034,0.508,3121.6,3120.6,16.82039086]
[1765638660035,0.9875,3121.6,3120.6,16.82039086]
[1765638660201,0.29989606,3121.5,3120.9,4.67335985]
[1765638660527,0.29989606,3121.4,3120.9,4.67335985]
[1765638660735,0.29989606,3121.3,3120.9,5.13595985]
[1765638660901,0.29989606,3121.2,3121.0,0.4626]
[1765638661107,0.001,3121.7,3121.0,0.9706]
[1765638661302,0.29977728,3121.6,3121.2,4.67335985]
[1765638661606,0.29977728,3121.5,3121.2,4.67335985]
[1765638661929,0.29977728,3121.4,3121.3,3.20379329]
[1765638662301,0.79077728,3121.4,3121.3,3.20379329]
[1765638663815,0.29977728,3121.4,3121.2,3.20389593]
[1765638664016,0.29977728,3121.3,3121.2,3.20389593]
[1765638664430,0.29977728,3121.3,3121.2,3.67339593]
[1765638665208,0.4795,3121.6,3121.2,6.87729186]
[1765638665418,0.29949671,3121.5,3121.2,7.35679186]
[1765638665749,0.29949671,3121.4,3121.2,7.35679186]
[1765638665953,0.4795,3121.6,3121.2,7.35679186]
[1765638666117,0.491,3121.3,3121.2,3.68339593]
[1765638666532,0.4795,3121.6,3121.2,6.88729186]
[1765638666841,0.2994444,3121.5,3121.2,6.88729186]
[1765638667043,0.2994444,3121.4,3121.2,6.88729186]
[1765638667250,0.4795,3121.6,3121.2,6.88729186]
[1765638667445,0.29940101,3121.5,3121.2,6.88729186]
[1765638667751,0.29940101,3121.4,3121.2,6.88729186]
[1765638667950,0.7904042,3121.3,3121.2,0.4795]
[1765638668246,0.7904042,3121.3,3121.2,3.20389593]
[1765638668447,1.2699042,3121.3,3121.2,3.20389593]
[1765638669839,1.2699042,3121.3,3121.1,3.71195302]
[1765638670041,0.1527,3121.2,3121.1,3.71195302]
[1765638670852,0.6322,3121.2,3121.1,3.71195302]
[1765638671019,0.93155609,3121.2,3121.1,3.20395302]
[1765638673163,0.29935609,3121.2,3121.1,3.67345302]
[1765638674372,0.29935609,3121.2,3121.1,3.20395302]
[1765638674770,0.79035609,3121.2,3121.0,3.20410124]
[1765638674975,0.9705,3121.2,3121.0,3.20410124]
[1765638675159,0.1527,3121.1,3121.0,3.20410124]
[1765638676549,0.6322,3121.1,3121.0,3.20410124]
[1765638678251,0.93161182,3121.1,3121.0,3.20410124]
[1765638678847,0.93161182,3121.1,3120.9,0.4795]
[1765638679078,1.26651182,3121.0,3120.9,3.20420391]
[1765638681293,1.26651182,3121.0,3120.8,3.20430658]
[1765638681467,0.29941182,3120.9,3120.8,3.20430658]
[1765638681670,0.45551182,3120.9,3120.8,3.20430658]
[1765638682796,1.10051182,3120.9,3120.8,3.20430658]
[1765638683494,1.10051182,3120.9,3120.6,3.20444491]
[1765638683495,1.10051182,3120.9,3120.7,0.58047529]
[1765638683709,0.29941182,3120.8,3120.7,0.58047529]
[1765638683899,0.75071182,3120.8,3120.7,0.58047529]
[1765638685819,0.4513,3120.8,3120.7,3.78488455]
[1765638686015,0.75120695,3120.8,3120.7,3.78488455]
[1765638687006,0.75120695,3120.8,3120.7,3.20440926]
[1765638687502,1.22940695,3120.8,3120.7,3.20440926]
[1765638688027,1.22940695,3120.8,3120.6,3.20451195]
[1765638688211,0.29990695,3120.7,3120.6,3.78498724]
[1765638688521,1.22880695,3120.7,3120.6,3.78498724]
[1765638689616,1.22880695,3120.7,3120.5,3.65588504]
[1765638689819,0.97140695,3120.6,3120.5,3.20458504]
[1765638690011,0.49320695,3120.6,3120.4,3.20471734]
[1765638690218,0.29990695,3120.5,3120.4,3.78519263]
[1765638690817,0.29990695,3120.5,3120.4,4.24459263]
[1765638691019,0.4782,3120.8,3120.4,4.24459263]
[1765638691320,0.29991216,3120.7,3120.5,0.4783]
[1765638691499,0.29991216,3120.6,3120.5,0.4783]
[1765638691907,0.29991216,3120.6,3120.5,0.9377]
[1765638692109,0.29991216,3120.6,3120.5,4.14231464]
[1765638692321,0.29991216,3120.6,3120.5,4.65031464]
[1765638693117,0.29991216,3120.6,3120.5,10.53715806]
[1765638693319,0.4782,3121.4,3120.5,16.94638734]
[1765638693524,0.2998969,3121.3,3120.6,0.4783]
[1765638693721,0.2998969,3121.2,3120.6,0.4783]
[1765638694020,0.2998969,3121.1,3120.7,6.40881852]
[1765638694214,0.2998969,3121.0,3120.7,6.40881852]
[1765638694520,0.2998969,3120.9,3120.7,6.88711852]
[1765638694720,0.2998969,3120.8,3120.7,3.68270926]
[1765638695117,0.2998969,3120.8,3120.7,4.14210926]
[1765638696910,0.2998969,3120.8,3120.7,3.66380926]
[1765638697111,1.2287969,3120.8,3120.7,3.20440926]
[1765638697696,1.2287969,3120.8,3120.6,3.20447059]
[1765638697896,0.7780969,3120.7,3120.6,3.20447059]
[1765638698102,1.2287969,3120.7,3120.6,3.20447059]
[1765638698307,1.2287969,3120.7,3120.5,3.20461464]
[1765638698509,0.7780969,3120.6,3120.5,3.20461464]
[1765638698692,1.2287969,3120.6,3120.5,3.20461464]
[1765638701801,1.2287969,3120.6,3120.4,3.78515085]
[1765638702002,0.194,3120.5,3120.4,3.78515085]
[1765638702220,0.97226876,3120.5,3120.0,0.58047529]
[1765638702401,0.97226876,3120.5,3120.1,3.20493889]
[1765638702402,0.4481,3120.3,3120.1,3.20493889]
[1765638702931,0.1966,3120.2,3120.1,3.20493889]
[1765638704409,0.6748,3120.2,3120.1,3.20493889]